[Event "ChessKid Cup Div-III 2023"]
[Site "Online"]
[Date "2023.05.22"]
[Round "1.3"]
[White "Iniyan, P."]
[Black "Kamsky, Gata"]
[Result "1/2-1/2"]
[ECO "D52"]
[WhiteElo "2525"]
[BlackElo "2665"]
[Annotator "TA"]
[PlyCount "129"]
[EventDate "2023.05.21"]
[EventType "k.o."]
[EventCountry "NET"]
[SourceTitle "playchess.com"]
[Source "ChessBase"]
[SourceQuality "1"]
[TimeControl "900+3"]

{[%evp 18,129,0,0,0,0,26,20,18,15,24,21,25,27,21,18,30,5,41,32,42,39,43,46,83,94,68,73,78,82,85,57,33,0,0,-10,0,-12,-9,-2,-11,-27,-27,-25,-19,-20,0,0,0,0,0,0,0,0,0,0,0,0,0,-7,-8,-198,0,0,0,0,0,0,0,0,8,8,8,8,8,8,14,14,24,8,8,0,8,0,0,0,17,0,0,0,7,0,0,0,0,0,8,0,0,0,0,0,0,0,0,0,0,0,0,0,0,0,0,0]} 1. d4 {[%emt 0:00:14]} Nf6 {[%emt 0:04:09]} 2. c4 {[%emt 0:00:05]} e6 {[%emt 0:00:04]} 3. Nf3 {[%emt 0:00:06]} d5 {[%emt 0:00:06]} 4. Nc3 {[%emt 0:00:04]} c6 {[%emt 0:00:06]} 5. Bg5 {[%emt 0:00:08]} Nbd7 {[%emt 0:00:10]} 6. e3 {[%emt 0:00:07]} Qa5 {[%emt 0:00:07]} 7. cxd5 {[%emt 0:00:09]} exd5 {[%emt 0:00:06]} 8. Bd3 {[%emt 0:00:18]} Ne4 {[%emt 0:00:05]} 9. O-O $1 {[%emt 0:00:05] 9.0-0 scores better than 9.Qc2.} Nxg5 {[%emt 0:00:05]} 10. Nxg5 {[%emt 0:00:03] [#] Qh5 would be deadly.} Be7 {[%emt 0:00:04] D52: Queen's Gambit Declined: Cambridge Springs Variation.} 11. f4 {[%emt 0:00:09]} (11. Nxh7 $2 g6 12. f4 Rxh7 $19) 11... Nf6 {[%emt 0:00:07]} 12. Qc2 {[%emt 0:01:12]} h6 {[%emt 0:01:02]} 13. Nf3 {[%emt 0:00:06] [#]} Be6 $146 {[%emt 0:00:11]} ({Predecessor:} 13... O-O 14. Rae1 c5 15. Kh1 c4 16. Bf5 b5 17. a3 b4 18. axb4 Qxb4 19. Bxc8 Rfxc8 {1-0 Sivuk,V (2588)-Novita,A (2381) Penang op 11th 2019 (7)}) 14. Ne5 {[%emt 0:00:07]} Rd8 {[%emt 0:00:46]} 15. Kh1 {[%emt 0:00:27]} Qc7 {[%emt 0:00:08]} 16. a3 {[%emt 0:01:06][%cal Ba2a3,Ba3a4][%mdl 32]} h5 {[%emt 0:00:18]} 17. b4 {[%emt 0:00:25]} a6 {[%emt 0:00:06]} 18. Na4 {[%emt 0:00:18]} Bd6 {[%emt 0:00:23]} 19. Nc5 {[%emt 0:00:06]} Bc8 {[%emt 0:00:05]} 20. a4 {[%emt 0:00:06]} a5 {[%emt 0:00:39]} 21. bxa5 {[%emt 0:00:12] White has more active pieces. The black rooks are badly placed.} Qxa5 {[%emt 0:00:11]} 22. Nb3 {[%emt 0:00:52] A dynamic duo of knights.} Qc7 {[%emt 0:00:05]} 23. a5 {[%emt 0:00:05]} O-O {[%emt 0:00:08]} 24. a6 {[%emt 0:00:24]} bxa6 {[%emt 0:00:07]} 25. Bxa6 {[%emt 0:00:26]} (25. Nxc6 Rde8 $11) 25... Ng4 {[%emt 0:00:29] aiming for ...Bxa6.} 26. Bxc8 {[%emt 0:00:07]} (26. Nxc6 $2 {is the wrong capture.} Nxe3 27. Qc1 Nxf1 28. Bxf1 Bxf4 $19) 26... Qxc8 {[%emt 0:00:28]} 27. Qe2 {[%emt 0:00:33]} ({Reject} 27. Nxc6 Nxe3 28. Qc1 Nxf1 29. Nxd8 Qxc1 30. Rxc1 Nxh2 $19) 27... f6 {[%emt 0:00:18]} 28. Nxg4 {[%emt 0:00:08]} hxg4 {[%emt 0:00:13]} 29. f5 {[%emt 0:00:42]} Rfe8 {[%emt 0:00:09]} 30. Qxg4 {[%emt 0:00:06]} Rxe3 {[%emt 0:00:08]} 31. Nd2 {[%emt 0:00:11]} ({But not} 31. Ra7 Rd7 32. Rxd7 Qxd7 $17) 31... Qc7 {[%emt 0:00:12]} 32. Nf3 {[%emt 0:00:29]} Re4 {[%emt 0:00:05]} 33. Qh5 {[%emt 0:00:05]} Qf7 {[%emt 0:00:06]} 34. Qxf7+ {[%emt 0:00:06]} Kxf7 {[%emt 0:00:05]} 35. Rfc1 {[%emt 0:00:04]} Rc8 {[%emt 0:00:09]} 36. Ra6 {[%emt 0:00:06]} Rf4 {[%emt 0:00:11]} 37. Ra7+ {[%emt 0:01:34]} Kg8 {[%emt 0:00:06]} 38. Rd7 {[%emt 0:00:04]} Bf8 {[%emt 0:00:05]} 39. Rxd5 $2 {[%emt 0:00:09] [#]} (39. Kg1 $11 {and White has nothing to worry.}) 39... cxd5 $2 {[%emt 0:00:05]} ({Better is} 39... Ba3 $1 $19 {[%cal Ra3c1]} 40. Rcc5 Rb8 41. Rxc6 Rb1+ 42. Ng1 Rff1) 40. Rxc8 $11 {[%emt 0:00:04]} Rxf5 {[%emt 0:00:03][%mdl 4096] Endgame KRB-KRN} 41. Rc7 {[%emt 0:00:12]} Rf4 {[%emt 0:00:24]} 42. Rd7 {[%emt 0:00:08]} g5 {[%emt 0:00:04] Threatens to win with ...g4.} 43. h3 {[%emt 0:00:13]} g4 {[%emt 0:00:23]} 44. hxg4 {[%emt 0:00:04]} Rxg4 {[%emt 0:00:04]} 45. Kh2 {[%emt 0:00:31]} Re4 {[%emt 0:00:08]} 46. Kg3 {[%emt 0:00:17]} Be7 {[%emt 0:00:08]} 47. Rxd5 {[%emt 0:00:32]} Kf7 {[%emt 0:00:05]} 48. Ra5 {[%emt 0:00:07]} (48. Nd2 $5 {[%cal Rd2e4]} Ke6 49. Nxe4 Kxd5 50. Kf4 $11) 48... Bd6+ {[%emt 0:00:04] The position is equal.} 49. Kf2 {[%emt 0:00:05]} Bf4 {[%emt 0:00:04]} 50. Ra7+ {[%emt 0:00:17]} Ke6 {[%emt 0:00:06]} 51. Ra6+ {[%emt 0:00:04]} Kf7 {[%emt 0:00:05]} 52. d5 {[%emt 0:00:11]} Rb4 {[%emt 0:00:12]} 53. Ra2 {[%emt 0:00:10]} Ke7 {[%emt 0:00:08]} 54. g3 {[%emt 0:00:14]} Bc7 {[%emt 0:00:05]} 55. Nh4 {[%emt 0:00:15]} Kd6 {[%emt 0:00:06]} 56. Rd2 {[%emt 0:00:06]} Bb6+ {[%emt 0:00:06]} 57. Kg2 {[%emt 0:00:06]} Bd4 {[%emt 0:00:30]} 58. Nf5+ {[%emt 0:00:05]} Kxd5 {[%emt 0:00:04]} 59. g4 {[%emt 0:00:09] Strongly threatening Kf3.} Ke4 {[%emt 0:00:10]} 60. Re2+ {[%emt 0:00:30]} Kf4 {[%emt 0:00:06]} 61. Nxd4 {[%emt 0:00:20]} Rxd4 {[%emt 0:00:04]} 62. Rf2+ {[%emt 0:00:03]} Kxg4 {[%emt 0:00:05]} 63. Rxf6 {[%emt 0:00:04]} Rd2+ {[%emt 0:00:03]} 64. Rf2 {[%emt 0:00:04]} Rxf2+ {[%emt 0:00:04]} 65. Kxf2 {[%emt 0:00:03] Weighted Error Value: White=0.09 (flawless) /Black=0.09 (flawless)} 1/2-1/2

[Event "ChessKid Cup Div-III 2023"]
[Site "Online"]
[Date "2023.05.22"]
[Round "2.1"]
[White "Harikrishna, Pentala"]
[Black "Yu, Yangyi"]
[Result "1/2-1/2"]
[ECO "D37"]
[WhiteElo "2704"]
[BlackElo "2729"]
[Annotator "TA"]
[PlyCount "81"]
[EventDate "2023.05.21"]
[EventType "k.o."]
[EventCountry "NET"]
[SourceTitle "playchess.com"]
[Source "ChessBase"]
[SourceQuality "1"]
[TimeControl "900+3"]

{[%evp 9,81,16,35,33,39,33,48,47,50,48,45,41,34,39,43,24,20,9,16,0,45,-13,-7,-16,29,26,27,21,28,16,20,11,15,10,7,0,0,0,38,0,0,-3,5,0,0,0,0,0,0,0,0,0,0,0,0,0,0,0,0,0,0,0,0,-1,0,0,0,0,0,0,0,0,0,-1]} 1. c4 {[%emt 0:00:09]} e6 {[%emt 0:00:12]} 2. Nc3 {[%emt 0:00:06]} d5 {[%emt 0:00:07]} 3. d4 {[%emt 0:00:02]} h6 {[%emt 0:00:38]} 4. Nf3 {[%emt 0:00:08]} Nf6 {[%emt 0:00:02]} 5. e3 {[%emt 0:00:38]} c5 {[%emt 0:00:20]} 6. cxd5 {[%emt 0:00:13] D37: Queen's Gambit Declined: 5 Bf4.} exd5 {[%emt 0:01:03]} 7. Bb5+ {[%emt 0:00:06]} Nc6 {[%emt 0:00:20]} 8. O-O {[%emt 0:00:11][%cal Oe3e4] White is slightly better.} Bd6 {[%emt 0:01:20]} 9. dxc5 {[%emt 0:00:11]} Bxc5 {[%emt 0:00:02]} 10. b3 {[%emt 0:00:30]} O-O {[%emt 0:00:04]} 11. Bb2 {[%emt 0:00:06] [#]} Bg4 $146 {[%emt 0:00:03]} ({Predecessor:} 11... Bd6 12. Rc1 Be6 13. Ne2 Rc8 14. Ned4 Nxd4 15. Qxd4 Qa5 16. a4 a6 17. Bd3 Rfe8 {½-½ Krimbacher,W (2250)-Reinstadler,B (2166) AUT-ch32 email 2014}) 12. Bxc6 {[%emt 0:01:10]} bxc6 {[%emt 0:00:02]} 13. Rc1 {[%emt 0:00:09][%cal Oc3d5] Black should prevent Nxd5!} Rc8 {[%emt 0:00:21]} 14. Ne2 {[%emt 0:00:08]} Bd6 {[%emt 0:00:30]} 15. Ng3 {[%emt 0:00:58]} (15. Ne5 $14) 15... Re8 $11 {[%emt 0:00:36]} 16. Qd3 {[%emt 0:01:51]} Bxf3 {[%emt 0:00:39]} 17. gxf3 {[%emt 0:00:04]} Be5 {[%emt 0:00:02]} 18. Bxe5 {[%emt 0:00:41]} Rxe5 {[%emt 0:00:00]} 19. Qd4 {[%emt 0:00:03][%csl LRa7,LRe5]} Re6 {[%emt 0:01:45]} 20. Rc2 {[%emt 0:01:20]} Qb6 {[%emt 0:00:49]} 21. Qxb6 {[%emt 0:01:47]} axb6 {[%emt 0:00:02]} 22. a4 {[%emt 0:00:03]} c5 {[%emt 0:00:29]} 23. Rd1 {[%emt 0:00:19]} Rd8 {[%emt 0:00:26]} 24. Ne2 {[%emt 0:00:06][%cal Ob3b4]} (24. b4 $5 {[%cal Rb4c5]}) 24... Red6 {[%emt 0:00:10] The position is equal.} 25. Rcd2 {[%emt 0:00:53]} R6d7 {[%emt 0:00:20] [#]} 26. b4 $1 {[%emt 0:00:06]} Ra8 {[%emt 0:00:45]} (26... Ra7 27. bxc5) 27. bxc5 {[%emt 0:00:30]} bxc5 {[%emt 0:00:01]} (27... Rxa4 $2 28. c6 (28. cxb6 Rb4 $16) 28... Rc7 29. Nd4 $16) 28. Nc3 {[%emt 0:00:01][%cal Rc3d5]} Rc7 {[%emt 0:00:10]} 29. Nxd5 {[%emt 0:00:41]} Nxd5 {[%emt 0:00:02]} 30. Rxd5 {[%emt 0:00:00]} Rxa4 {[%emt 0:00:01][%mdl 4096] Endgame KRR-KRR} 31. Rc1 {[%emt 0:00:01]} c4 {[%emt 0:00:16]} 32. Rd4 {[%emt 0:00:12]} g6 {[%emt 0:00:09]} 33. f4 {[%emt 0:00:03]} Kg7 {[%emt 0:00:04]} 34. Kg2 {[%emt 0:00:03]} Rb4 {[%emt 0:00:10]} 35. h4 {[%emt 0:00:02]} h5 {[%emt 0:00:16]} 36. Kf3 {[%emt 0:00:05]} Rc5 {[%emt 0:00:08]} 37. Rc3 {[%emt 0:00:15]} Ra4 {[%emt 0:00:06]} 38. Kg3 {[%emt 0:00:27]} Rb4 {[%emt 0:00:05]} 39. Kf3 {[%emt 0:00:16]} Ra4 {[%emt 0:00:01]} 40. Kg3 {[%emt 0:00:04]} Rb4 {[%emt 0:00:01]} 41. Kf3 {[%emt 0:00:01] Weighted Error Value: White=0.06 (flawless) /Black=0.07 (flawless)} 1/2-1/2

[Event "ChessKid Cup Div-III 2023"]
[Site "Online"]
[Date "2023.05.22"]
[Round "2.1"]
[White "Keymer, Vincent"]
[Black "Lysyj, Igor"]
[Result "1/2-1/2"]
[ECO "A13"]
[WhiteElo "2700"]
[BlackElo "2606"]
[Annotator "TA"]
[PlyCount "106"]
[EventDate "2023.05.21"]
[EventType "k.o."]
[EventCountry "NET"]
[SourceTitle "playchess.com"]
[Source "ChessBase"]
[SourceQuality "1"]
[TimeControl "900+3"]

{[%evp 12,106,7,10,2,0,0,0,-7,-6,-4,-6,-5,0,16,19,8,16,35,17,23,15,8,0,19,22,15,16,21,32,18,16,15,12,34,21,22,18,37,26,59,25,38,43,37,43,47,0,0,0,0,0,0,0,0,0,0,-17,-19,-80,-72,-62,-43,-67,-72,-59,-59,-74,-74,-74,-71,-73,-57,-64,-51,-46,-26,-26,-26,-26,-26,-26,-26,-26,-7,-7,0,-16,0,-16,0,-16,0,-16,0,-16,0]} 1. Nf3 {[%emt 0:00:03]} Nf6 {[%emt 0:00:07]} 2. c4 {[%emt 0:00:02]} e6 {[%emt 0:00:01]} 3. Nc3 {[%emt 0:00:01]} d5 {[%emt 0:00:08]} 4. e3 {[%emt 0:00:01]} Be7 {[%emt 0:00:03]} 5. b3 {[%emt 0:00:28]} O-O {[%emt 0:00:02]} 6. Bb2 {[%emt 0:00:01]} c5 $1 {[%emt 0:00:03] The main line 6...c5 scores better than 6...b6.} 7. d4 {[%emt 0:00:09]} cxd4 {[%emt 0:00:06] A13: English Opening: 1...e6.} 8. Nxd4 {[%emt 0:00:08]} dxc4 {[%emt 0:00:32]} 9. Bxc4 {[%emt 0:00:03]} a6 {[%emt 0:00:02]} 10. Be2 {[%emt 0:00:41]} b5 {[%emt 0:00:08]} 11. Bf3 {[%emt 0:00:27]} Ra7 {[%emt 0:00:02][%cal Ba8a7,Ba7b7,Bb7c7][%mdl 32]} 12. O-O {[%emt 0:00:06] [#]} Bb7 $146 {[%emt 0:00:12]} (12... e5 $5 {[%cal Re5d4]} 13. Nde2 Nbd7 $11) ({Predecessor:} 12... Rd7 13. Qb1 Bb7 14. Bxb7 Rxb7 15. Rd1 Rd7 16. Qc2 Qc7 17. Rac1 Rfd8 18. h3 g6 {0-1 Vidit,S (2726)-Zierk,S (2499) Titled Tuesday intern op 23rd Feb blitz 2021 (4)}) 13. Bxb7 {[%emt 0:00:36]} Rxb7 {[%emt 0:00:03]} 14. Qf3 {[%emt 0:00:00]} Qc8 {[%emt 0:00:35]} 15. Rac1 {[%emt 0:02:05][%cal Oc3b5] White wants to play Ncxb5!} Rc7 {[%emt 0:00:05]} 16. Qg3 {[%emt 0:00:48][%cal Oc3d5] [#] aiming for Nd5!} Nh5 {[%emt 0:04:54]} 17. Qf3 {[%emt 0:03:53]} (17. Qe5 {seems wilder.} Rc5 18. Nf5 Bf6 19. Qxf6 Nxf6 20. Ne7+) 17... Nf6 {[%emt 0:00:03]} 18. a4 {[%emt 0:00:17]} bxa4 {[%emt 0:00:14]} 19. Nxa4 {[%emt 0:00:08]} Rd8 {[%emt 0:02:18]} 20. Rxc7 {[%emt 0:01:10]} Qxc7 {[%emt 0:00:03]} 21. Rc1 {[%emt 0:00:01]} Qa5 {[%emt 0:00:52]} 22. Qb7 {[%emt 0:00:49]} (22. h3 {is interesting.} Qd2 23. Kf1 Nd5 24. Qe2) 22... Qb4 {[%emt 0:00:07]} (22... Nd5 {looks sharper.} 23. Bc3 Nxc3 24. Qxe7 Nd5) 23. Qxb4 {[%emt 0:00:42]} Bxb4 {[%emt 0:00:04]} 24. g3 {[%emt 0:00:12]} Ne8 {[%emt 0:00:40]} 25. Kg2 {[%emt 0:01:41]} Kf8 {[%emt 0:00:25]} 26. Rc4 {[%emt 0:00:13]} Be7 {[%emt 0:00:16]} 27. Nc6 {[%emt 0:00:24]} Nxc6 {[%emt 0:00:44]} 28. Rxc6 {[%emt 0:00:00]} Rb8 {[%emt 0:00:01]} 29. Rxa6 {[%emt 0:00:20]} (29. Bd4 $14) 29... Rxb3 $11 {[%emt 0:00:03]} 30. Ra8 {[%emt 0:00:00][%cal Ob2g7]} f6 {[%emt 0:00:22]} 31. Bd4 {[%emt 0:00:14]} Ra3 {[%emt 0:00:24]} 32. f4 {[%emt 0:00:34]} Ra2+ {[%emt 0:01:09]} 33. Kf3 {[%emt 0:00:01]} Kf7 {[%emt 0:00:07]} 34. Nb6 {[%emt 0:00:10]} Rxh2 {[%emt 0:00:44]} 35. Ra7 {[%emt 0:00:02] [#]} (35. Nc8 $11 Rc2 36. Nxe7 Kxe7 37. g4) 35... Rc2 $1 $17 {[%emt 0:00:02]} 36. g4 {[%emt 0:00:17]} Rc7 {[%emt 0:00:07]} 37. Ra8 {[%emt 0:00:03]} Nd6 {[%emt 0:00:17]} 38. Ra5 {[%emt 0:00:02]} Rb7 {[%emt 0:00:15]} 39. Na4 {[%emt 0:00:03]} Nc4 {[%emt 0:00:12]} 40. Ra6 {[%emt 0:00:02]} Nd2+ {[%emt 0:00:03]} 41. Ke2 {[%emt 0:00:03]} Ne4 {[%emt 0:00:02]} 42. Nc3 {[%emt 0:00:05]} Nxc3+ {[%emt 0:00:03]} 43. Bxc3 $15 {[%emt 0:00:01][%mdl 4096] Endgame KRB-KRB} f5 {[%emt 0:00:12]} 44. g5 {[%emt 0:00:04]} h6 {[%emt 0:00:01]} 45. gxh6 {[%emt 0:00:01]} gxh6 {[%emt 0:00:01]} 46. Ra8 {[%emt 0:00:02]} Bf8 {[%emt 0:00:01]} 47. Kf3 {[%emt 0:00:03]} h5 {[%emt 0:00:02]} 48. Rc8 {[%emt 0:00:07] The position is equal.} h4 {[%emt 0:00:03]} 49. Kg2 {[%emt 0:00:02]} Be7 {[%emt 0:00:06]} 50. Bd4 {[%emt 0:00:03]} Rd7 {[%emt 0:00:06]} 51. Ra8 {[%emt 0:00:01]} Rb7 {[%emt 0:00:03]} 52. Kh3 {[%emt 0:00:02]} Rd7 {[%emt 0:00:03]} 53. Rc8 {[%emt 0:00:03]} Rb7 {[%emt 0:00:04] Weighted Error Value: White=0.08 (flawless) /Black=0.06 (flawless)} 1/2-1/2

[Event "ChessKid Cup Div-III 2023"]
[Site "Online"]
[Date "2023.05.22"]
[Round "2.1"]
[White "Sevian, Samuel"]
[Black "Chigaev, Maksim"]
[Result "1/2-1/2"]
[ECO "C00"]
[WhiteElo "2684"]
[BlackElo "2628"]
[Annotator "TA"]
[PlyCount "100"]
[EventDate "2023.05.21"]
[EventType "k.o."]
[EventCountry "NET"]
[SourceTitle "playchess.com"]
[Source "ChessBase"]
[SourceQuality "1"]
[TimeControl "900+3"]

{[%evp 9,100,-79,-12,-38,-37,-29,-25,-21,-22,-29,-12,-53,-32,-43,-20,-62,-53,-57,-58,-78,-78,-76,-73,-62,-77,-113,-30,-36,-37,-47,-37,-36,-36,-53,-53,-53,-53,-53,-53,-53,-53,-53,-53,-54,-53,-54,-54,-54,-53,-54,-53,-54,-54,-54,-53,-54,-54,-54,-54,-54,-57,-57,-36,-36,-36,-36,-36,-43,-36,-36,-36,-43,-36,-43,-43,-43,-43,-43,-43,-43,-33,-60,-60,-60,-60,-60,-60,-60,0,-60,0,-60,0]} 1. Nc3 {[%emt 0:00:04]} d5 {[%emt 0:00:11]} 2. e4 {[%emt 0:00:01]} e6 {[%emt 0:00:04]} 3. g4 {[%emt 0:00:12]} Nf6 {[%emt 0:00:25]} 4. Bg2 {[%emt 0:00:02] [#]} Nc6 $146 {[%emt 0:00:22]} ({Predecessor:} 4... Bc5 5. d3 dxe4 6. Nxe4 Nxe4 7. Bxe4 O-O 8. Ne2 Qh4 9. d4 f5 10. dxc5 fxe4 {1-0 Tauriainen,M (2138)-Rasanen,O (1865) Heart of Finland op 22nd 2012 (9)}) 5. d3 {[%emt 0:00:02] [#]} dxe4 {[%emt 0:00:08]} (5... d4 $1 $17 {[%cal Rd4c3]} 6. Nb1 e5) 6. Nxe4 {[%emt 0:00:05] C00: French: Unusual White 2nd moves.} (6. g5 $5 {[%cal Rg5f6]} Nd5 7. Bxe4 $11) 6... Nxe4 {[%emt 0:00:03]} 7. Bxe4 {[%emt 0:00:00]} e5 {[%emt 0:00:04]} 8. h3 {[%emt 0:00:01] Black has an edge.} Be6 {[%emt 0:00:01]} 9. Nf3 {[%emt 0:00:02]} Qd7 {[%emt 0:00:03]} 10. Qe2 {[%emt 0:00:00]} O-O-O {[%emt 0:00:04]} 11. Be3 {[%emt 0:00:09]} f6 {[%emt 0:00:25]} 12. Rg1 {[%emt 0:00:05]} Kb8 {[%emt 0:00:13]} (12... h5 {seems wilder.} 13. O-O-O Nb4 14. b3 Nd5) 13. a3 {[%emt 0:00:01]} h5 {[%emt 0:00:20][%cal Rh5g4]} 14. Nd2 {[%emt 0:00:03]} hxg4 {[%emt 0:00:08]} 15. hxg4 {[%emt 0:00:00]} Nd4 {[%emt 0:00:02]} 16. Bxd4 {[%emt 0:00:02]} Qxd4 {[%emt 0:00:00]} 17. c3 {[%emt 0:00:04]} Qb6 {[%emt 0:00:13]} ({Black should play} 17... Qa4 $17 {White should prevent ...Bc5.} 18. Qd1 Qa6) 18. O-O-O {[%emt 0:00:04]} Bc5 {[%emt 0:00:13]} 19. Nc4 {[%emt 0:00:02] White is weak on the dark squares} Bxc4 {[%emt 0:00:05]} 20. dxc4 {[%emt 0:00:01]} Bxf2 {[%emt 0:00:07]} 21. Rxd8+ {[%emt 0:00:01]} Rxd8 {[%emt 0:00:00]} 22. Rd1 {[%emt 0:00:00][%cal Rd1d8] [#]} Qe3+ {[%emt 0:00:11]} 23. Qxe3 {[%emt 0:00:01]} Bxe3+ {[%emt 0:00:13]} (23... Rxd1+ {simplifies} 24. Kxd1 Bxe3 25. a4 b6) 24. Kc2 {[%emt 0:00:01][%cal Rd1d8]} Rxd1 {[%emt 0:00:03]} 25. Kxd1 $15 {[%emt 0:00:00][%mdl 4096] Endgame KB-KB} b6 {[%emt 0:00:04]} 26. a4 {[%emt 0:00:02]} a5 {[%emt 0:00:10]} 27. Ke2 {[%emt 0:00:01]} Bc1 {[%emt 0:00:02]} 28. b3 {[%emt 0:00:01]} Kc8 {[%emt 0:00:00]} 29. Kd3 {[%emt 0:00:00]} Kd7 {[%emt 0:00:00]} 30. Bf5+ {[%emt 0:00:02]} Ke7 {[%emt 0:00:01]} 31. Bg6 {[%emt 0:00:00]} Ke6 {[%emt 0:00:08]} 32. c5 {[%emt 0:00:28]} bxc5 {[%emt 0:00:02]} 33. Kc4 {[%emt 0:00:01]} Bd2 {[%emt 0:00:01]} 34. Kd3 {[%emt 0:00:01]} Be1 {[%emt 0:00:02]} 35. Kc4 {[%emt 0:00:01]} e4 {[%emt 0:00:18]} 36. Bxe4 {[%emt 0:00:02]} Ke5 {[%emt 0:00:02]} 37. Bf5 {[%emt 0:00:12]} Kf4 {[%emt 0:00:05]} 38. Kd3 {[%emt 0:00:02]} Kg5 {[%emt 0:00:04]} 39. Bc8 {[%emt 0:00:05]} g6 {[%emt 0:00:08][%cal Bg7g6,Bg6f5,Bf5f4][%mdl 32]} 40. Be6 {[%emt 0:00:26]} Kf4 {[%emt 0:00:02]} 41. Bc8 {[%emt 0:00:11]} f5 {[%emt 0:00:02]} 42. gxf5 {[%emt 0:00:01]} gxf5 {[%emt 0:00:00]} 43. Be6 {[%emt 0:00:21]} Ke5 {[%emt 0:00:06]} 44. Bc4 {[%emt 0:00:01]} f4 {[%emt 0:00:04]} 45. Ke2 {[%emt 0:00:00]} Bxc3 {[%emt 0:00:02]} 46. Kf3 {[%emt 0:00:00]} Bd2 {[%emt 0:00:03]} 47. Bg8 {[%emt 0:00:02]} Be3 {[%emt 0:00:01]} 48. Bc4 {[%emt 0:00:00]} Bd2 {[%emt 0:00:00]} 49. Bg8 $1 {[%emt 0:00:02]} Be3 {[%emt 0:00:01]} 50. Bc4 {[%emt 0:00:00]} Bd2 {[%emt 0:00:00] Weighted Error Value: White=0.06 (flawless) /Black=0.11 (very precise)} (50... Kd4 $15) 1/2-1/2

[Event "ChessKid Cup Div-III 2023"]
[Site "Online"]
[Date "2023.05.22"]
[Round "2.1"]
[White "Kamsky, Gata"]
[Black "Vallejo Pons, Francisco"]
[Result "1/2-1/2"]
[ECO "A40"]
[WhiteElo "2665"]
[BlackElo "2712"]
[Annotator "TA"]
[PlyCount "47"]
[EventDate "2023.05.21"]
[EventType "k.o."]
[EventCountry "NET"]
[SourceTitle "playchess.com"]
[Source "ChessBase"]
[SourceQuality "1"]
[TimeControl "900+3"]

{[%evp 9,47,34,37,34,60,43,50,56,66,27,31,0,0,6,13,0,51,50,58,13,20,25,14,15,20,27,32,0,0,0,7,0,0,0,0,0,10,0,0,0]} 1. d4 {[%emt 0:00:06]} e6 {[%emt 0:00:04]} 2. Bf4 {[%emt 0:00:02]} c5 {[%emt 0:00:03]} 3. e3 {[%emt 0:00:02]} Qb6 {[%emt 0:00:09]} 4. Na3 {[%emt 0:01:01]} d5 {[%emt 0:01:17]} 5. Nb5 {[%emt 0:00:04]} Na6 {[%emt 0:00:01]} 6. c3 {[%emt 0:00:04] A40: Unusual replies to 1 d4.} Bd7 {[%emt 0:01:06]} 7. a4 {[%emt 0:00:03]} Nf6 {[%emt 0:02:05][%cal Bg8f6,Bf6d7,Bd7c5][%mdl 32]} 8. Nf3 {[%emt 0:00:26] White is slightly better.} Be7 {[%emt 0:00:38]} 9. Ne5 {[%emt 0:00:07] White is more active.} (9. a5 $5 {[%cal Ra5b6]} Qd8 10. Nd6+ Bxd6 11. Bxd6 $14) 9... O-O {[%emt 0:00:35]} 10. Nxd7 {[%emt 0:00:04]} Nxd7 {[%emt 0:00:00] [#]} 11. Be2 $146 {[%emt 0:00:10]} ({Predecessor:} 11. Bd3 Nf6 12. O-O Ne8 13. Re1 Nd6 14. a5 Qc6 15. Qa4 Rfd8 16. Nxd6 Qxa4 17. Rxa4 Bxd6 18. Bxa6 Bxf4 19. exf4 bxa6 20. dxc5 {1-0 Jobava,B (2603)-Lana Rodriguez,D (2361) Titled Tuesday intern op 02nd Mar blitz 2021 (6)}) 11... Rfc8 {[%emt 0:00:27]} 12. O-O {[%emt 0:00:05][%cal Oe3e4]} Nab8 {[%emt 0:00:25]} (12... Nf6 $11) 13. a5 {[%emt 0:00:14]} Qc6 {[%emt 0:00:49]} 14. dxc5 {[%emt 0:02:27]} Nxc5 {[%emt 0:00:30]} 15. c4 {[%emt 0:00:22]} dxc4 {[%emt 0:00:31]} 16. Bxc4 {[%emt 0:00:03]} a6 {[%emt 0:00:30]} 17. Nd4 {[%emt 0:00:03]} Qe8 {[%emt 0:00:18]} 18. Be2 {[%emt 0:02:04]} (18. b4 $5 {[%cal Rb4c5]} Ne4 19. Qd3 $11 (19. Bd3 Nc3 $11)) 18... Nbd7 {[%emt 0:00:30] The position is equal.} 19. Nb3 {[%emt 0:01:10]} Bf6 {[%emt 0:00:51]} 20. Ra2 {[%emt 0:00:11]} Rd8 {[%emt 0:01:34]} 21. Bc7 {[%emt 0:00:24] [#] Hoping for Nxc5.} Rdc8 {[%emt 0:00:01]} 22. Bf4 {[%emt 0:00:27]} Rd8 {[%emt 0:00:02]} 23. Bc7 {[%emt 0:00:05] Strongly threatening Nxc5.} Rdc8 {[%emt 0:00:01] ...Nxb3 is the strong threat.} 24. Bf4 {[%emt 0:00:47] Weighted Error Value: White=0.10 (very precise) /Black=0.08 (flawless)} 1/2-1/2